[Event "*** Titled Tuesday Blitz"]
[Site "Chess.com"]
[Date "2018.06.05"]
[Round "6"]
[White "grzechu96"]
[Black "Dr-Bassem"]
[Result "1-0"]
[WhiteElo "2510"]
[BlackElo "2662"]
[TimeControl "180+2"]
[EndTime "14:29:10 PDT"]
[Termination "grzechu96 won by resignation"]

1. e4 {[%clk 0:03:01.9]} 1... e5 {[%clk 0:03:00.4]} 2. Nf3 {[%clk 0:03:03.3]}
2... Nc6 {[%clk 0:03:01.7]} 3. d4 {[%clk 0:03:04.2]} 3... exd4 {[%clk
0:03:02.6]} 4. Nxd4 {[%clk 0:03:06.1]} 4... Nf6 {[%clk 0:03:03.6]} 5. Nxc6
{[%clk 0:03:06.7]} 5... bxc6 {[%clk 0:03:05.5]} 6. e5 {[%clk 0:03:08.3]} 6...
Qe7 {[%clk 0:03:06.8]} 7. Qe2 {[%clk 0:03:09.6]} 7... Nd5 {[%clk 0:03:08.3]} 8.
c4 {[%clk 0:03:11.1]} 8... Ba6 {[%clk 0:03:09.7]} 9. Nd2 {[%clk 0:03:11.9]} 9...
g6 {[%clk 0:03:09.5]} 10. Nf3 {[%clk 0:03:11.5]} 10... Bg7 {[%clk 0:03:07.7]}
11. Bg5 {[%clk 0:03:09.7]} 11... f6 {[%clk 0:03:01]} 12. exf6 {[%clk 0:03:11.6]}
12... Qxe2+ {[%clk 0:03:00.5]} 13. Bxe2 {[%clk 0:03:13.5]} 13... Nxf6 {[%clk
0:03:01.8]} 14. O-O-O {[%clk 0:03:14.7]} 14... O-O-O {[%clk 0:03:03.3]} 15. Nd2
{[%clk 0:03:16.2]} 15... Rde8 {[%clk 0:02:58.9]} 16. Bf3 {[%clk 0:03:17.1]}
16... c5 {[%clk 0:02:34.2]} 17. Rhe1 {[%clk 0:03:02]} 17... Bb7 {[%clk
0:02:11.4]} 18. Bxb7+ {[%clk 0:03:01.9]} 18... Kxb7 {[%clk 0:02:13.3]} 19. f3
{[%clk 0:03:03.3]} 19... d6 {[%clk 0:02:09.2]} 20. Kc2 {[%clk 0:02:58.7]} 20...
Nd7 {[%clk 0:02:00.5]} 21. Ne4 {[%clk 0:02:31.8]} 21... Ne5 {[%clk 0:02:00]} 22.
b3 {[%clk 0:02:32.5]} 22... Nc6 {[%clk 0:01:59.7]} 23. Bf6 {[%clk 0:02:16.5]}
23... Nb4+ {[%clk 0:01:33.4]} 24. Kb1 {[%clk 0:02:17.1]} 24... Rxe4 {[%clk
0:00:56.6]} 25. Bxg7 {[%clk 0:02:16.7]} 25... Rxe1 {[%clk 0:00:58]} 26. Rxe1
{[%clk 0:02:17.5]} 26... Rd8 {[%clk 0:00:59.1]} 27. Bc3 {[%clk 0:02:17.5]} 27...
Nc6 {[%clk 0:00:59.7]} 28. Kc2 {[%clk 0:02:08.8]} 28... Kc8 {[%clk 0:00:59.8]}
29. Re4 {[%clk 0:01:53.1]} 29... Rf8 {[%clk 0:00:54.5]} 30. Kd3 {[%clk
0:01:46.3]} 30... Kd7 {[%clk 0:00:55.4]} 31. Ke3 {[%clk 0:01:46.1]} 31... Ne7
{[%clk 0:00:54.4]} 32. Kf2 {[%clk 0:01:18.7]} 32... c6 {[%clk 0:00:50.7]} 33.
Bb2 {[%clk 0:01:08.9]} 33... Nf5 {[%clk 0:00:39.2]} 34. g4 {[%clk 0:00:41.7]}
34... Ne7 {[%clk 0:00:24.8]} 35. Kg3 {[%clk 0:00:42.2]} 35... a5 {[%clk
0:00:25]} 36. Bc3 {[%clk 0:00:40.4]} 36... Ra8 {[%clk 0:00:23]} 37. Rf4 {[%clk
0:00:37.6]} 37... a4 {[%clk 0:00:20.1]} 38. Rf7 {[%clk 0:00:38.5]} 38... axb3
{[%clk 0:00:20.4]} 39. axb3 {[%clk 0:00:20.9]} 39... Ke6 {[%clk 0:00:16.3]} 40.
Rxh7 {[%clk 0:00:21.8]} 40... Ra3 {[%clk 0:00:16.8]} 41. Bd2 {[%clk 0:00:23.2]}
41... Rxb3 {[%clk 0:00:15.2]} 42. Bg5 {[%clk 0:00:24.7]} 42... Nc8 {[%clk
0:00:16.5]} 43. Rg7 {[%clk 0:00:21.8]} 43... Ke5 {[%clk 0:00:14.8]} 44. Rxg6
{[%clk 0:00:21.9]} 44... Kd4 {[%clk 0:00:15.1]} 45. h4 {[%clk 0:00:20.7]} 45...
Kxc4 {[%clk 0:00:15.5]} 46. h5 {[%clk 0:00:22.2]} 46... d5 {[%clk 0:00:15.8]}
47. h6 {[%clk 0:00:23.5]} 47... Rb7 {[%clk 0:00:15.5]} 48. Rg7 {[%clk
0:00:23.4]} 48... Rb1 {[%clk 0:00:16.2]} 49. h7 {[%clk 0:00:20.9]} 49... Rh1
{[%clk 0:00:16.1]} 50. Bh4 {[%clk 0:00:22.1]} 1-0

[Event "*** Titled Tuesday Blitz"]
[Site "Chess.com"]
[Date "2018.06.05"]
[Round "6"]
[White "Swarnapuri"]
[Black "Bryakin_Mikhail"]
[Result "0-1"]
[WhiteElo "2453"]
[BlackElo "2650"]
[TimeControl "180+2"]
[EndTime "14:29:12 PDT"]
[Termination "Bryakin_Mikhail won by resignation"]

1. d4 {[%clk 0:03:01.7]} 1... Nf6 {[%clk 0:02:58.7]} 2. Bf4 {[%clk 0:03:03.1]}
2... d5 {[%clk 0:02:59.1]} 3. e3 {[%clk 0:03:04.3]} 3... c5 {[%clk 0:03:00.4]}
4. c3 {[%clk 0:03:05.1]} 4... Nc6 {[%clk 0:03:01.3]} 5. Nd2 {[%clk 0:03:06.6]}
5... Bf5 {[%clk 0:03:02]} 6. Ngf3 {[%clk 0:03:08.1]} 6... e6 {[%clk 0:02:56.7]}
7. Qb3 {[%clk 0:03:00.7]} 7... Qb6 {[%clk 0:02:54.8]} 8. Qxb6 {[%clk 0:02:53.5]}
8... axb6 {[%clk 0:02:54.4]} 9. Bb5 {[%clk 0:02:54.7]} 9... Nd7 {[%clk
0:02:47.7]} 10. Ne5 {[%clk 0:02:54.5]} 10... Ndxe5 {[%clk 0:02:47.9]} 11. Bxe5
{[%clk 0:02:56.4]} 11... Kd7 {[%clk 0:02:42.8]} 12. Bg3 {[%clk 0:02:56.3]} 12...
Bd6 {[%clk 0:02:43.4]} 13. Nf3 {[%clk 0:02:53.8]} 13... f6 {[%clk 0:02:39.7]}
14. Kd2 {[%clk 0:02:42.1]} 14... Ra5 {[%clk 0:02:40.1]} 15. a4 {[%clk 0:02:29]}
15... h6 {[%clk 0:02:36.3]} 16. Rhc1 {[%clk 0:02:00.3]} 16... c4 {[%clk
0:02:35.7]} 17. Nh4 {[%clk 0:01:56.6]} 17... Bh7 {[%clk 0:02:36.3]} 18. Nf3
{[%clk 0:01:46]} 18... Bxg3 {[%clk 0:02:34.6]} 19. hxg3 {[%clk 0:01:47.9]} 19...
Kd6 {[%clk 0:02:36.1]} 20. Bxc6 {[%clk 0:01:42.8]} 20... bxc6 {[%clk 0:02:38]}
21. Ra3 {[%clk 0:01:43.9]} 21... Rha8 {[%clk 0:02:36.5]} 22. Rca1 {[%clk
0:01:44.7]} 22... e5 {[%clk 0:02:31.2]} 23. Kc1 {[%clk 0:01:42.1]} 23... c5
{[%clk 0:02:22.2]} 24. Nd2 {[%clk 0:01:38.4]} 24... cxd4 {[%clk 0:02:07]} 25.
cxd4 {[%clk 0:01:39.3]} 25... exd4 {[%clk 0:02:08.9]} 26. exd4 {[%clk
0:01:41.1]} 26... Re8 {[%clk 0:02:10.4]} 27. b4 {[%clk 0:01:30]} 27... Ra7
{[%clk 0:01:56.1]} 28. Re3 {[%clk 0:01:30.5]} 28... Rae7 {[%clk 0:01:50.8]} 29.
Raa3 {[%clk 0:01:31.4]} 29... Bd3 {[%clk 0:01:50]} 30. a5 {[%clk 0:01:24.5]}
30... Rxe3 {[%clk 0:01:36.2]} 31. fxe3 {[%clk 0:01:26.3]} 31... Ra8 {[%clk
0:01:37.7]} 32. Nb1 {[%clk 0:01:21.1]} 32... Bxb1 {[%clk 0:01:27.2]} 33. Kxb1
{[%clk 0:01:21.7]} 33... Kc6 {[%clk 0:01:28.7]} 34. Kc2 {[%clk 0:01:22.2]} 34...
bxa5 {[%clk 0:01:23.1]} 35. bxa5 {[%clk 0:01:20.6]} 35... Kb5 {[%clk 0:01:24.3]}
36. Kc3 {[%clk 0:00:48.8]} 36... Rxa5 {[%clk 0:01:24.6]} 37. Rxa5+ {[%clk
0:00:50.7]} 37... Kxa5 {[%clk 0:01:26.5]} 38. e4 {[%clk 0:00:52]} 38... dxe4
{[%clk 0:01:25.1]} 39. Kxc4 {[%clk 0:00:52.8]} 39... f5 {[%clk 0:01:00.8]} 40.
d5 {[%clk 0:00:41.3]} 40... Kb6 {[%clk 0:01:01.6]} 41. g4 {[%clk 0:00:35.4]}
41... g6 {[%clk 0:00:55.7]} 42. Kd4 {[%clk 0:00:32.2]} 42... Kc7 {[%clk
0:00:56.9]} 43. Kc4 {[%clk 0:00:21]} 43... Kd6 {[%clk 0:00:54.2]} 44. Kd4 {[%clk
0:00:21.5]} 44... h5 {[%clk 0:00:54.1]} 45. gxh5 {[%clk 0:00:22.4]} 45... gxh5
{[%clk 0:00:56]} 46. g3 {[%clk 0:00:24.3]} 46... Kd7 {[%clk 0:00:51.8]} 47. Kc4
{[%clk 0:00:24]} 47... Ke7 {[%clk 0:00:52.9]} 48. Kc3 {[%clk 0:00:25.2]} 48...
f4 {[%clk 0:00:29.7]} 0-1

[Event "*** Titled Tuesday Blitz"]
[Site "Chess.com"]
[Date "2018.06.05"]
[Round "6"]
[White "Albertu"]
[Black "Morshynska"]
[Result "0-1"]
[WhiteElo "2316"]
[BlackElo "2241"]
[TimeControl "180+2"]
[EndTime "14:29:14 PDT"]
[Termination "Morshynska won by resignation"]

1. e4 {[%clk 0:03:01.9]} 1... e5 {[%clk 0:02:58.9]} 2. Nf3 {[%clk 0:03:03.3]}
2... Nc6 {[%clk 0:02:58.5]} 3. Bb5 {[%clk 0:03:04.6]} 3... a6 {[%clk 0:02:58.8]}
4. Ba4 {[%clk 0:03:05.2]} 4... Nf6 {[%clk 0:02:59.2]} 5. O-O {[%clk 0:03:04.4]}
5... b5 {[%clk 0:02:59.5]} 6. Bb3 {[%clk 0:03:04.4]} 6... Bb7 {[%clk 0:03:00.3]}
7. c3 {[%clk 0:03:02.2]} 7... Nxe4 {[%clk 0:02:59.9]} 8. d4 {[%clk 0:03:01]}
8... Na5 {[%clk 0:02:59.6]} 9. Bxf7+ {[%clk 0:02:48.2]} 9... Kxf7 {[%clk
0:02:58.7]} 10. Nxe5+ {[%clk 0:02:49.5]} 10... Kg8 {[%clk 0:02:44.9]} 11. Qh5
{[%clk 0:02:32]} 11... Qe8 {[%clk 0:02:28.6]} 12. Qh3 {[%clk 0:02:01]} 12... Qe6
{[%clk 0:02:20.8]} 13. Qh5 {[%clk 0:01:24]} 13... d6 {[%clk 0:02:03.6]} 14. Nd3
{[%clk 0:01:18.8]} 14... Nf6 {[%clk 0:01:55.9]} 15. Qh4 {[%clk 0:01:09]} 15...
Qg4 {[%clk 0:01:43.1]} 16. Qxg4 {[%clk 0:00:52.5]} 16... Nxg4 {[%clk 0:01:45]}
17. f3 {[%clk 0:00:34.1]} 17... Nf6 {[%clk 0:01:44.3]} 18. b3 {[%clk 0:00:32.4]}
18... Be7 {[%clk 0:01:42.3]} 19. Bd2 {[%clk 0:00:33.1]} 19... Kf7 {[%clk
0:01:42.1]} 20. Na3 {[%clk 0:00:29.9]} 20... Nc6 {[%clk 0:01:39.4]} 21. Nc2
{[%clk 0:00:28.4]} 21... Rhe8 {[%clk 0:01:38.4]} 22. c4 {[%clk 0:00:28.2]} 22...
Bf8 {[%clk 0:01:32.7]} 23. Kf2 {[%clk 0:00:27.7]} 23... g6 {[%clk 0:01:31.1]}
24. a4 {[%clk 0:00:27.2]} 24... bxc4 {[%clk 0:01:25.8]} 25. bxc4 {[%clk
0:00:29.1]} 25... Rab8 {[%clk 0:01:22]} 26. Rab1 {[%clk 0:00:29.5]} 26... Bc8
{[%clk 0:01:09]} 27. Rxb8 {[%clk 0:00:28.6]} 27... Nxb8 {[%clk 0:01:10.9]} 28.
Rb1 {[%clk 0:00:27.4]} 28... Bf5 {[%clk 0:01:10.7]} 29. Nce1 {[%clk 0:00:25.3]}
29... Nc6 {[%clk 0:00:47.1]} 30. Bc3 {[%clk 0:00:21.9]} 30... Rb8 {[%clk
0:00:44.5]} 31. Rc1 {[%clk 0:00:23.1]} 31... Rb3 {[%clk 0:00:38]} 32. d5 {[%clk
0:00:23.7]} 32... Nd8 {[%clk 0:00:21.1]} 33. g4 {[%clk 0:00:23.9]} 33... Bxd3
{[%clk 0:00:20.7]} 34. Nxd3 {[%clk 0:00:25.8]} 34... Nb7 {[%clk 0:00:20.9]} 35.
Rc2 {[%clk 0:00:18.5]} 35... Nd7 {[%clk 0:00:20.9]} 36. Nc1 {[%clk 0:00:18.5]}
36... Rb1 {[%clk 0:00:20.9]} 37. Ne2 {[%clk 0:00:15.4]} 37... Bg7 {[%clk
0:00:20]} 38. Bd2 {[%clk 0:00:16.2]} 38... Nbc5 {[%clk 0:00:19.8]} 39. a5 {[%clk
0:00:17.2]} 39... Ne5 {[%clk 0:00:18.9]} 40. h3 {[%clk 0:00:15.6]} 40... Ned3+
{[%clk 0:00:19]} 41. Ke3 {[%clk 0:00:16.4]} 41... Rb2 {[%clk 0:00:19.5]} 42.
Rxb2 {[%clk 0:00:13.4]} 42... Nxb2 {[%clk 0:00:21.4]} 43. Be1 {[%clk 0:00:07.2]}
43... Nxc4+ {[%clk 0:00:21.9]} 44. Kf2 {[%clk 0:00:08.6]} 44... Nd3+ {[%clk
0:00:22.3]} 45. Kf1 {[%clk 0:00:08.9]} 45... Ne3+ {[%clk 0:00:23.2]} 46. Kg1
{[%clk 0:00:09.4]} 46... Nxe1 {[%clk 0:00:24.6]} 47. Kf2 {[%clk 0:00:11]} 47...
N1c2 {[%clk 0:00:24.2]} 0-1

[Event "*** Titled Tuesday Blitz"]
[Site "Chess.com"]
[Date "2018.06.05"]
[Round "6"]
[White "BasilSmash"]
[Black "goodtimes2020"]
[Result "1-0"]
[WhiteElo "2412"]
[BlackElo "2276"]
[TimeControl "180+2"]
[EndTime "14:29:14 PDT"]
[Termination "BasilSmash won by resignation"]

1. d4 {[%clk 0:03:01.9]} 1... e6 {[%clk 0:03:00.9]} 2. Nf3 {[%clk 0:02:58.1]}
2... b6 {[%clk 0:03:01.3]} 3. Bf4 {[%clk 0:02:57.4]} 3... Bb7 {[%clk 0:03:02]}
4. e3 {[%clk 0:02:58.4]} 4... f5 {[%clk 0:03:02.5]} 5. c4 {[%clk 0:02:58.2]}
5... Nf6 {[%clk 0:03:03.5]} 6. Nc3 {[%clk 0:02:58.7]} 6... Be7 {[%clk
0:03:04.2]} 7. Bd3 {[%clk 0:02:57.3]} 7... O-O {[%clk 0:03:05]} 8. h3 {[%clk
0:02:58.2]} 8... Ne4 {[%clk 0:02:57.2]} 9. Qc2 {[%clk 0:02:56.2]} 9... d5 {[%clk
0:02:49.7]} 10. O-O {[%clk 0:02:53.1]} 10... Nd7 {[%clk 0:02:35.1]} 11. Ne5
{[%clk 0:02:49.7]} 11... Nxe5 {[%clk 0:02:35]} 12. Bxe5 {[%clk 0:02:51.6]} 12...
Bf6 {[%clk 0:02:26.4]} 13. Bxe4 {[%clk 0:02:46.1]} 13... dxe4 {[%clk 0:02:20.9]}
14. Bxf6 {[%clk 0:02:44.7]} 14... Rxf6 {[%clk 0:02:19.8]} 15. Ne2 {[%clk
0:02:44.6]} 15... g5 {[%clk 0:02:13]} 16. Rad1 {[%clk 0:02:38]} 16... Qe7 {[%clk
0:02:12]} 17. d5 {[%clk 0:02:33.9]} 17... e5 {[%clk 0:02:06.3]} 18. Nc3 {[%clk
0:02:32.5]} 18... Rh6 {[%clk 0:02:02.7]} 19. Nb5 {[%clk 0:02:22.4]} 19... g4
{[%clk 0:02:00.6]} 20. Kh2 {[%clk 0:02:11]} 20... gxh3 {[%clk 0:01:25.1]} 21. g3
{[%clk 0:02:07.7]} 21... a6 {[%clk 0:01:19.7]} 22. Nc3 {[%clk 0:02:06.7]} 22...
Kh8 {[%clk 0:01:15.3]} 23. f4 {[%clk 0:01:59.9]} 23... Rg8 {[%clk 0:01:09.1]}
24. fxe5 {[%clk 0:01:57.5]} 24... Qxe5 {[%clk 0:01:05.3]} 25. Rf4 {[%clk
0:01:55.9]} 25... Rhg6 {[%clk 0:01:05.3]} 26. Rg1 {[%clk 0:01:56]} 26... Rg4
{[%clk 0:01:02.5]} 27. Qf2 {[%clk 0:01:52.1]} 27... R8g5 {[%clk 0:00:59.6]} 28.
Qd2 {[%clk 0:01:50.6]} 28... h5 {[%clk 0:00:57.7]} 29. Ne2 {[%clk 0:01:43.3]}
29... h4 {[%clk 0:00:58.3]} 30. Rxg4 {[%clk 0:01:39.3]} 30... Rxg4 {[%clk
0:00:55.6]} 31. Qd4 {[%clk 0:01:37.8]} 31... Qxd4 {[%clk 0:00:47.8]} 32. Nxd4
{[%clk 0:01:37.5]} 32... b5 {[%clk 0:00:38.6]} 33. b3 {[%clk 0:01:31.3]} 33...
bxc4 {[%clk 0:00:18.1]} 34. bxc4 {[%clk 0:01:33.2]} 34... Rg6 {[%clk 0:00:18.5]}
35. gxh4 {[%clk 0:01:31.3]} 35... Rb6 {[%clk 0:00:19.2]} 36. Kxh3 {[%clk
0:01:31.3]} 36... Rb4 {[%clk 0:00:19.3]} 37. Rc1 {[%clk 0:01:23.4]} 37... Rb2
{[%clk 0:00:18.5]} 38. Nxf5 {[%clk 0:01:22.3]} 38... Rxa2 {[%clk 0:00:19.5]} 39.
Kg4 {[%clk 0:01:23.4]} 39... Bc8 {[%clk 0:00:18.7]} 40. Rf1 {[%clk 0:01:21]}
40... Rg2+ {[%clk 0:00:19.3]} 41. Kf4 {[%clk 0:01:21.6]} 41... Rc2 {[%clk
0:00:15.3]} 42. Ke5 {[%clk 0:01:13.3]} 42... Bxf5 {[%clk 0:00:14]} 43. Rxf5
{[%clk 0:01:12.4]} 43... Rxc4 {[%clk 0:00:15.5]} 44. Rf6 {[%clk 0:01:08.4]}
44... a5 {[%clk 0:00:15.2]} 45. Ra6 {[%clk 0:01:09.1]} 45... a4 {[%clk
0:00:15.6]} 46. h5 {[%clk 0:01:09.7]} 46... Kh7 {[%clk 0:00:10.8]} 47. h6 {[%clk
0:01:08.2]} 47... a3 {[%clk 0:00:10.3]} 48. Rxa3 {[%clk 0:01:07]} 48... Kxh6
{[%clk 0:00:11.4]} 49. Ra6+ {[%clk 0:01:07.8]} 49... Kg5 {[%clk 0:00:12.1]} 50.
Rc6 {[%clk 0:01:08.5]} 50... Ra4 {[%clk 0:00:12]} 51. Rxc7 {[%clk 0:01:08.7]}
51... Ra3 {[%clk 0:00:13.6]} 52. Kxe4 {[%clk 0:01:06.1]} 52... Kf6 {[%clk
0:00:14.9]} 53. Rc6+ {[%clk 0:01:06.5]} 53... Ke7 {[%clk 0:00:16]} 54. Kd4
{[%clk 0:01:07.2]} 54... Ra4+ {[%clk 0:00:15.6]} 55. Ke5 {[%clk 0:01:08.2]}
55... Rh4 {[%clk 0:00:14.5]} 56. e4 {[%clk 0:01:09.3]} 56... Rh5+ {[%clk
0:00:15.3]} 57. Kd4 {[%clk 0:01:09.9]} 57... Kd7 {[%clk 0:00:16.8]} 58. Rg6
{[%clk 0:01:10]} 58... Rh1 {[%clk 0:00:16.5]} 59. Rg7+ {[%clk 0:01:10.1]} 59...
Ke8 {[%clk 0:00:16.1]} 60. d6 {[%clk 0:01:10.8]} 60... Kd8 {[%clk 0:00:17.3]}
61. Kd5 {[%clk 0:01:11.4]} 61... Rh5+ {[%clk 0:00:17.7]} 62. e5 {[%clk
0:01:11.6]} 62... Rh6 {[%clk 0:00:18.9]} 63. Rg8+ {[%clk 0:01:11.8]} 63... Kd7
{[%clk 0:00:18.5]} 64. e6+ {[%clk 0:01:12.8]} 64... Rxe6 {[%clk 0:00:18.2]} 65.
Rg7+ {[%clk 0:01:14.1]} 1-0

[Event "*** Titled Tuesday Blitz"]
[Site "Chess.com"]
[Date "2018.06.05"]
[Round "6"]
[White "nochewycandy"]
[Black "Siemba"]
[Result "1-0"]
[WhiteElo "2124"]
[BlackElo "2006"]
[TimeControl "180+2"]
[EndTime "14:29:15 PDT"]
[Termination "nochewycandy won by resignation"]

1. e4 {[%clk 0:03:01.9]} 1... c5 {[%clk 0:02:57.4]} 2. Nf3 {[%clk 0:03:02.7]}
2... d6 {[%clk 0:02:57.8]} 3. Bb5+ {[%clk 0:03:03.7]} 3... Bd7 {[%clk
0:02:56.3]} 4. c4 {[%clk 0:03:03.6]} 4... Nf6 {[%clk 0:02:55.3]} 5. Nc3 {[%clk
0:03:04.4]} 5... e5 {[%clk 0:02:56.5]} 6. O-O {[%clk 0:03:02.8]} 6... a6 {[%clk
0:02:56.7]} 7. Bxd7+ {[%clk 0:03:01.6]} 7... Nbxd7 {[%clk 0:02:58.6]} 8. d3
{[%clk 0:03:02.7]} 8... Be7 {[%clk 0:02:59.4]} 9. Ne1 {[%clk 0:03:01.9]} 9...
O-O {[%clk 0:03:00]} 10. Nc2 {[%clk 0:03:03]} 10... Rb8 {[%clk 0:02:55.2]} 11.
a4 {[%clk 0:03:04]} 11... Ne8 {[%clk 0:02:50.7]} 12. Ne3 {[%clk 0:03:00.4]}
12... g6 {[%clk 0:02:51.1]} 13. g3 {[%clk 0:02:59.2]} 13... Bf6 {[%clk 0:02:46]}
14. Ned5 {[%clk 0:02:58.7]} 14... Bg7 {[%clk 0:02:46]} 15. a5 {[%clk 0:02:59.9]}
15... Nc7 {[%clk 0:02:38.2]} 16. Nxc7 {[%clk 0:02:58.2]} 16... Qxc7 {[%clk
0:02:40.1]} 17. Nd5 {[%clk 0:02:59.9]} 17... Qd8 {[%clk 0:02:35.5]} 18. Bd2
{[%clk 0:02:52.9]} 18... Nf6 {[%clk 0:02:10.6]} 19. Bg5 {[%clk 0:02:53.6]} 19...
h6 {[%clk 0:01:46]} 20. Nxf6+ {[%clk 0:02:53.8]} 20... Bxf6 {[%clk 0:01:47.9]}
21. Bxh6 {[%clk 0:02:54.9]} 21... Bg7 {[%clk 0:01:47]} 22. Bd2 {[%clk
0:02:47.5]} 22... f5 {[%clk 0:01:44.5]} 23. f3 {[%clk 0:02:43.9]} 23... f4
{[%clk 0:01:42.7]} 24. g4 {[%clk 0:02:45]} 24... Qh4 {[%clk 0:01:36.9]} 25. Qe1
{[%clk 0:02:45.6]} 25... Qh3 {[%clk 0:01:34.2]} 26. b4 {[%clk 0:02:43.5]} 26...
Kf7 {[%clk 0:01:30]} 27. bxc5 {[%clk 0:02:43.1]} 27... dxc5 {[%clk 0:01:31.9]}
28. Rb1 {[%clk 0:02:43.9]} 28... Rh8 {[%clk 0:01:28.1]} 29. Qe2 {[%clk
0:02:44.6]} 29... Bf6 {[%clk 0:01:02.2]} 30. Be1 {[%clk 0:02:35.6]} 30... Bd8
{[%clk 0:00:51.4]} 31. Qg2 {[%clk 0:02:23.9]} 31... Qxg2+ {[%clk 0:00:48.6]} 32.
Kxg2 {[%clk 0:02:24.7]} 32... Ke6 {[%clk 0:00:38.1]} 33. Rb2 {[%clk 0:02:18]}
33... Kd6 {[%clk 0:00:37.9]} 34. Bc3 {[%clk 0:02:13.5]} 34... g5 {[%clk
0:00:31.3]} 35. Rfb1 {[%clk 0:02:10.3]} 35... Rh7 {[%clk 0:00:32.2]} 36. Kg1
{[%clk 0:01:43.1]} 36... Re7 {[%clk 0:00:27.9]} 37. Be1 {[%clk 0:01:35.6]} 37...
Kc6 {[%clk 0:00:22.2]} 38. h4 {[%clk 0:01:33.7]} 38... Rd7 {[%clk 0:00:23.5]}
39. Rb3 {[%clk 0:01:28.8]} 39... gxh4 {[%clk 0:00:23.3]} 40. Kh2 {[%clk
0:01:30.1]} 40... b5 {[%clk 0:00:17.7]} 41. axb6 {[%clk 0:01:29.5]} 41... Rxb6
{[%clk 0:00:18.5]} 42. Rxb6+ {[%clk 0:01:24.3]} 42... Bxb6 {[%clk 0:00:20.4]}
43. Rb3 {[%clk 0:01:23.9]} 43... Bd8 {[%clk 0:00:19.8]} 44. Ra3 {[%clk 0:01:23]}
44... a5 {[%clk 0:00:13.4]} 45. Kh3 {[%clk 0:01:04.2]} 45... Bb6 {[%clk
0:00:04.4]} 46. Bxh4 {[%clk 0:00:56.7]} 46... a4 {[%clk 0:00:05.7]} 47. g5
{[%clk 0:00:55.3]} 47... Ba5 {[%clk 0:00:06.4]} 48. Kg4 {[%clk 0:00:54.9]} 48...
Bb4 {[%clk 0:00:07.3]} 49. Rxa4 {[%clk 0:00:56.4]} 49... Rxd3 {[%clk 0:00:08.4]}
50. Ra6+ {[%clk 0:00:57.4]} 50... Kb7 {[%clk 0:00:09.2]} 51. Re6 {[%clk
0:00:56]} 51... Rd1 {[%clk 0:00:04.1]} 52. g6 {[%clk 0:00:54.7]} 52... Rg1+
{[%clk 0:00:03.8]} 53. Kf5 {[%clk 0:00:56.1]} 53... Bc3 {[%clk 0:00:05.1]} 54.
Bf6 {[%clk 0:00:55.3]} 54... Kc7 {[%clk 0:00:05.2]} 55. g7 {[%clk 0:00:55.4]}
55... Kd7 {[%clk 0:00:06.3]} 56. Re7+ {[%clk 0:00:54.1]} 56... Kd8 {[%clk
0:00:07.7]} 57. g8=Q+ {[%clk 0:00:50.7]} 57... Rxg8 {[%clk 0:00:08]} 58. Rg7+
{[%clk 0:00:52.2]} 1-0

[Event "*** Titled Tuesday Blitz"]
[Site "Chess.com"]
[Date "2018.06.05"]
[Round "6"]
[White "JaimeSantosLatasa"]
[Black "Alexander_Moskalenko"]
[Result "0-1"]
[WhiteElo "2652"]
[BlackElo "2777"]
[TimeControl "180+2"]
[EndTime "14:29:18 PDT"]
[Termination "Alexander_Moskalenko won by resignation"]

1. e4 {[%clk 0:03:01.9]} 1... d6 {[%clk 0:03:00]} 2. d4 {[%clk 0:03:01.9]} 2...
Nf6 {[%clk 0:03:01.9]} 3. Nc3 {[%clk 0:03:02.5]} 3... e5 {[%clk 0:03:02.1]} 4.
Nf3 {[%clk 0:03:02.7]} 4... Nbd7 {[%clk 0:03:02.2]} 5. Bc4 {[%clk 0:03:02.5]}
5... Be7 {[%clk 0:03:02.5]} 6. O-O {[%clk 0:03:00.6]} 6... O-O {[%clk 0:03:04]}
7. a4 {[%clk 0:03:00.4]} 7... a6 {[%clk 0:03:03]} 8. Re1 {[%clk 0:02:57.4]} 8...
b6 {[%clk 0:03:02.3]} 9. h3 {[%clk 0:02:42.3]} 9... Bb7 {[%clk 0:02:57.7]} 10.
d5 {[%clk 0:02:36.3]} 10... h6 {[%clk 0:02:58.6]} 11. Nd2 {[%clk 0:02:31.1]}
11... Nh7 {[%clk 0:02:58.1]} 12. Nf1 {[%clk 0:02:27.5]} 12... Bg5 {[%clk
0:02:55.5]} 13. Ne3 {[%clk 0:02:26.1]} 13... g6 {[%clk 0:02:49.1]} 14. g3 {[%clk
0:02:23.8]} 14... h5 {[%clk 0:02:46.6]} 15. h4 {[%clk 0:02:24.1]} 15... Bh6
{[%clk 0:02:48.1]} 16. Rb1 {[%clk 0:02:20]} 16... Kh8 {[%clk 0:02:39.2]} 17. b4
{[%clk 0:02:14.7]} 17... Ndf6 {[%clk 0:02:40]} 18. Bf1 {[%clk 0:02:12.1]} 18...
Bc8 {[%clk 0:02:35.4]} 19. a5 {[%clk 0:02:10.2]} 19... b5 {[%clk 0:02:31.3]} 20.
Bg2 {[%clk 0:02:07.7]} 20... Bd7 {[%clk 0:02:25.1]} 21. Qe2 {[%clk 0:02:06]}
21... Rc8 {[%clk 0:02:26]} 22. Rd1 {[%clk 0:02:02.1]} 22... Rg8 {[%clk
0:02:25.9]} 23. Rd3 {[%clk 0:01:55.1]} 23... Qf8 {[%clk 0:02:12.9]} 24. Bd2
{[%clk 0:01:44.9]} 24... g5 {[%clk 0:02:06.7]} 25. hxg5 {[%clk 0:01:43.7]} 25...
Bxg5 {[%clk 0:02:08.6]} 26. Qf1 {[%clk 0:01:40.3]} 26... Qh6 {[%clk 0:02:09.6]}
27. Bh3 {[%clk 0:01:37.1]} 27... Ng4 {[%clk 0:02:10.7]} 28. Re1 {[%clk
0:01:32.2]} 28... Nhf6 {[%clk 0:02:06.7]} 29. Re2 {[%clk 0:01:28.3]} 29... Rg7
{[%clk 0:02:06.6]} 30. Ng2 {[%clk 0:01:24.3]} 30... Bxd2 {[%clk 0:02:02.1]} 31.
Rexd2 {[%clk 0:01:26.2]} 31... Nh7 {[%clk 0:01:57.1]} 32. Nh4 {[%clk 0:01:23.7]}
32... Ng5 {[%clk 0:01:48.5]} 33. Bg2 {[%clk 0:01:24.5]} 33... Rf8 {[%clk
0:01:36.2]} 34. Nd1 {[%clk 0:01:22.7]} 34... f5 {[%clk 0:01:36.6]} 35. exf5
{[%clk 0:01:23.5]} 35... Bxf5 {[%clk 0:01:38.5]} 36. Qe2 {[%clk 0:01:15.3]}
36... Bxd3 {[%clk 0:01:31.9]} 37. cxd3 {[%clk 0:01:14.1]} 37... Rgf7 {[%clk
0:01:11.9]} 38. f3 {[%clk 0:01:11.3]} 38... Nf6 {[%clk 0:01:13.3]} 39. Ne3
{[%clk 0:01:12.4]} 39... Ng8 {[%clk 0:01:10.3]} 40. Rc2 {[%clk 0:01:09]} 40...
Nh7 {[%clk 0:01:07]} 41. Kh2 {[%clk 0:00:59.2]} 41... Qg5 {[%clk 0:01:07.5]} 42.
Bh3 {[%clk 0:00:55.7]} 42... Rg7 {[%clk 0:01:05.1]} 43. Nef5 {[%clk 0:00:52.6]}
43... Rgf7 {[%clk 0:01:05.4]} 44. Ne3 {[%clk 0:00:53.4]} 44... Nh6 {[%clk
0:01:06.1]} 45. Be6 {[%clk 0:00:50.6]} 45... Rg7 {[%clk 0:01:07.1]} 46. Qf2
{[%clk 0:00:49.6]} 46... Nf6 {[%clk 0:01:03.2]} 47. Qe1 {[%clk 0:00:46.1]} 47...
Ne8 {[%clk 0:00:59.7]} 48. Rc6 {[%clk 0:00:42.6]} 48... Re7 {[%clk 0:01:00.4]}
49. Rxa6 {[%clk 0:00:40.8]} 49... Ng7 {[%clk 0:01:01]} 50. Bh3 {[%clk
0:00:38.9]} 50... Ref7 {[%clk 0:00:49.4]} 51. Qe2 {[%clk 0:00:29.7]} 51... Rg8
{[%clk 0:00:44.2]} 52. Rc6 {[%clk 0:00:27.4]} 52... Ne6 {[%clk 0:00:34.8]} 53.
Qf2 {[%clk 0:00:18]} 53... Nd4 {[%clk 0:00:35.7]} 54. Rc1 {[%clk 0:00:18.4]}
54... Ng4+ {[%clk 0:00:35.4]} 55. Bxg4 {[%clk 0:00:17.4]} 55... hxg4 {[%clk
0:00:36.4]} 56. Rh1 {[%clk 0:00:17.2]} 56... Kg7 {[%clk 0:00:33.8]} 57. a6
{[%clk 0:00:17]} 57... Nxf3+ {[%clk 0:00:34.7]} 58. Nxf3 {[%clk 0:00:17.7]}
58... Rxf3 {[%clk 0:00:36.6]} 0-1